fUST/lending_fUST_20240109
["ID","MTS","AMOUNT","RATE_DAILY","PERIOD"]
[310900484,1704813008603,-0.46682473,0.00022234,2]
[310900485,1704813008746,-172.08636527,0.00022234,2]
[310900490,1704813024462,-154.90705577,0.00021151,4]
[310900491,1704813024492,-517.77698348,0.00023501,2]
[310900492,1704813024569,-168.63530147,0.00023501,2]
[310900508,1704813032727,-11494.22997513,0.00023502,2]
[310900510,1704813032737,-2337.83510092,0.00023502,2]
[310900512,1704813032747,-17376.99752858,0.00023503,2]
[310900514,1704813032757,-7929.88728965,0.00023503,2]
[310900516,1704813032767,-351.80111995,0.00023503,2]
[310900518,1704813032778,-8757.29384563,0.00023504,2]
[310900520,1704813032788,-168.03011766,0.00023504,4]
[310900521,1704813032798,-27259.08469382,0.00023505,2]
[310900720,1704813050129,-154.90705577,0.00023504,4]
[310900721,1704813050139,-3863.98982603,0.00023505,2]
[310900722,1704813050152,-46243.44740569,0.00023505,2]
[310900723,1704813050340,-686.41228495,0.00023503,2]
[310900724,1704813050350,-188.26414151,0.00023504,2]
[310900725,1704813050359,-200.34044019,0.00023504,2]
[310900726,1704813050368,-128.96540779,0.00023504,4]
[310900727,1704813050380,-65.56620844,0.00023504,4]
[310900728,1704813050389,-368.1483569,0.00023504,2]
[310900729,1704813050399,-31.28543466,0.00023504,4]
[310900730,1704813050440,-5000.0,0.00023501,2]
[310900731,1704813050473,150.90945433,0.00029744,120]
[310900732,1704813050506,-5000.0,0.00023501,2]
[310900733,1704813050540,-561.18078957,0.00023501,2]
[310900734,1704813050662,1012.82,0.00023495,3]
[310900736,1704813053420,-778.71355223,0.00023501,2]
[310900737,1704813053618,-778.71355223,0.00022513,2]
[310900738,1704813053712,-778.71355223,0.00022513,2]
[310900739,1704813054104,-5000.0,0.00022513,2]
[310900740,1704813054428,-5000.0,0.00022513,2]
[310900741,1704813054465,-5000.0,0.00022513,2]
[310900742,1704813054503,-5000.0,0.00022513,2]
[310900743,1704813054615,-3342.57289554,0.00022513,2]
[310900744,1704813054643,-15.89211331,0.00023501,2]
[310900745,1704813054788,157.02749759,0.00023501,2]
[310900746,1704813061386,-1417.2172,0.00023495,3]
[310900747,1704813061576,-28.9228,0.00023495,3]
[310900749,1704813073483,-154.90705577,0.00021153,4]
[310900750,1704813073514,-2151.35634423,0.00023495,3]
[310900751,1704813073621,-201.97365577,0.00023495,3]
[310900752,1704813085039,-1921.8878,0.00023495,3]
[310900753,1704813085341,-39.2222,0.00023495,3]
[310900754,1704813097311,-154.90705577,0.00021153,4]
[310900755,1704813097342,-2563.75994423,0.00023495,3]
[310900756,1704813097492,-210.39005577,0.00023495,3]
[310900757,1704813109411,-2265.5542,0.00023495,3]
[310900758,1704813109682,-46.2358,0.00023495,3]
[310900759,1704813111714,200.0,0.00025854,7]
[310900761,1704813120932,-154.90705577,0.00021153,4]
[310900762,1704813120963,-1733.06294423,0.00023495,3]
[310900763,1704813121097,-193.43705577,0.00023495,3]
[310900767,1704813163996,-154.90705577,0.00021153,4]
[310900768,1704813164027,-1605.41,0.00023495,3]
[310900769,1704813164056,-1337.84,0.00023495,3]
[310900770,1704813164084,-878.80054423,0.00023495,3]
[310900771,1704813164125,-672.68403925,0.00023494,2]
[310900772,1704813164159,-13.7282457,0.00023494,2]
[310900773,1704813164259,-236.06945577,0.00023495,3]
[310900778,1704813288155,150.89437394,0.00029164,120]
[310900781,1704813344718,-261.71556348,0.00020814,2]
[310900782,1704813344746,-686.41228495,0.00020815,2]
[310900783,1704813344774,-298.58194452,0.00020815,2]
[310900784,1704813344807,-154.90705577,0.00020815,4]
[310900785,1704813344835,-525.50594084,0.00020815,2]
[310900786,1704813344865,-946.99985386,0.00020815,2]
[310900787,1704813344893,-154.90705577,0.00020816,2]
[310900788,1704813344922,-872.3740242,0.00020816,2]
[310900789,1704813344952,-154.90705577,0.00020816,2]
[310900790,1704813344980,-198.77449424,0.00020816,2]
[310900791,1704813345009,-560.33964085,0.00020816,2]
[310900792,1704813345039,-184.57508575,0.00020816,2]
[310900793,1704813345074,-852.35,0.00021141,3]
[310900794,1704813345102,-985.3166,0.00021394,3]
[310900795,1704813345136,-61.41418067,0.00020816,2]
[310900796,1704813345164,-154.90705577,0.00020816,2]
[310900797,1704813345192,-260.53656778,0.00020816,2]
[310900798,1704813345219,-322.75514155,0.00020817,2]
[310900799,1704813345246,-642.78616711,0.00020817,2]
[310900800,1704813345275,-2872.41512846,0.00020817,2]
[310900801,1704813345305,-212.90723887,0.00020817,2]
[310900802,1704813345334,-472.27851979,0.00020817,2]
[310900803,1704813345375,-37.5034,0.00021394,3]
[310900804,1704813345415,-492.05847702,0.00020817,2]
[310900805,1704813345444,-606.52275476,0.00020817,2]
[310900806,1704813345473,-508.90304238,0.00020818,2]
[310900807,1704813345502,-253.49803646,0.00020818,2]
[310900808,1704813345530,-1250.39757004,0.00020818,2]
[310900809,1704813345561,-178.47633031,0.00020818,2]
[310900810,1704813345591,-174.82421155,0.00020819,2]
[310900811,1704813345621,-162.71686372,0.00020819,2]
[310900812,1704813345650,-242.53908956,0.00020819,2]
[310900813,1704813345677,-166.57052583,0.00020819,2]
[310900814,1704813345705,-963.49309837,0.00020819,2]
[310900815,1704813345759,-1844.82776219,0.00020819,2]
[310900816,1704813345791,-628.8587347,0.0002082,2]
[310900817,1704813345819,-2526.31350311,0.00021146,2]
[310900818,1704813345851,-5000.0,0.00021146,2]
[310900819,1704813345889,-5000.0,0.00021146,2]
[310900820,1704813345935,-5000.0,0.00021146,2]
[310900821,1704813345979,-5000.0,0.00021146,2]
[310900822,1704813346023,-1030.35167796,0.00020814,2]
[310900823,1704813346050,-3969.64832204,0.00021146,2]
[310900824,1704813346091,-5000.0,0.00021146,2]
[310900825,1704813346126,-5000.0,0.00021146,2]
[310900826,1704813346163,-322.55686223,0.00021146,2]
[310900827,1704813346310,-4677.44313777,0.00021147,2]
[310900828,1704813346349,-1274.14197761,0.00021147,2]
[310900829,1704813346379,-154.90705577,0.00021148,2]
[310900830,1704813346407,-901.51710272,0.00021148,2]
[310900831,1704813346435,-260.869305,0.00021148,2]
[310900832,1704813346463,-586.93974545,0.00021149,2]
[310900833,1704813346492,-154.94451709,0.00021149,2]
[310900834,1704813346521,-1666.68029636,0.00021151,2]
[310900835,1704813346559,-5000.0,0.00021151,2]
[310900836,1704813346597,-5000.0,0.00021151,2]
[310900837,1704813346639,-5000.0,0.00021151,2]
[310900838,1704813346678,-4189.89133141,0.00021151,2]
[310900839,1704813346959,164.88125202,0.00020814,2]
[310900840,1704813347135,399.93081293,0.00020814,2]
[310900841,1704813347303,245.29660364,0.00021141,3]
[310900842,1704813347334,464.99339636,0.00021141,3]
[310900843,1704813348209,4535.00660364,0.00020816,2]
[310900844,1704813348242,5000.0,0.00020816,2]
[310900845,1704813348271,5000.0,0.00020816,2]
[310900846,1704813348303,5000.0,0.00020816,2]
[310900847,1704813348332,1293.12055652,0.00020816,2]
[310900849,1704813349613,5000.0,0.00020815,2]
[310900850,1704813349642,5000.0,0.00020815,2]
[310900851,1704813349671,3689.20949741,0.00020815,2]
[310900852,1704813350424,178.40030532,0.00020814,2]
[310900853,1704813354457,-460.15808285,0.00021144,2]
[310900854,1704813354770,-9.39098128,0.00021144,2]
[310900856,1704813355645,-213.07009231,0.00021152,2]
[310900857,1704813355674,-640.92812265,0.00021153,2]
[310900858,1704813355810,-334.1125228,0.00021153,2]
[310900859,1704813355838,-519.88569216,0.00021403,2]
[310900860,1704813355964,-351.5410578,0.00021403,2]
[310900861,1704813355992,-502.45715716,0.00021403,2]
[310900862,1704813356129,-23.04878368,0.00021403,2]
[310900863,1704813356322,1554.75394377,0.00021152,2]
[310900864,1704813356350,327.43027234,0.00021152,2]
[310900865,1704813356383,-514.99582202,0.00021152,2]
[310900866,1704813356463,-469.9849036,0.00021152,2]
[310900867,1704813356522,45.01091842,0.00021152,2]
[310900868,1704813356621,-514.99582202,0.00021152,2]
[310900869,1704813356800,-58.48637203,0.00021152,2]
[310900870,1704813357244,174.82421155,0.00021152,2]
[310900871,1704813358151,-580.0718,0.00021394,3]
[310900872,1704813358319,-11.8382,0.00021394,3]
[310900873,1704813358509,-594.39229967,0.00021403,2]
[310900874,1704813358738,-12.13045509,0.00021403,2]
[310900875,1704813358766,-582.26184458,0.00021403,2]
[310900877,1704813358846,-594.39229967,0.00021403,2]
[310900878,1704813358962,-594.39229967,0.00021403,2]
[310900879,1704813359076,-5000.0,0.00021403,2]
[310900880,1704813359207,-5000.0,0.00021403,2]
[310900881,1704813359392,-2888.15208447,0.00021403,2]
[310900882,1704813359421,-899.62480677,0.00021403,2]
[310900883,1704813359451,-260.53656778,0.00021403,2]
[310900885,1704813359606,686.41228495,0.00021403,2]
[310900886,1704813359640,154.90705577,0.00021403,2]
[310900887,1704813359744,110.36720026,0.00021403,2]
[310900888,1704813359772,1140.03036978,0.00021403,2]
[310900889,1704813359807,162.57789258,0.00021403,2]
[310900890,1704813360078,3697.39173764,0.00021403,2]
[310900891,1704813360108,5000.0,0.00021403,2]
[310900892,1704813360137,5000.0,0.00021403,2]
[310900893,1704813360168,1136.95814706,0.00021403,2]
[310900894,1704813360197,672.68403925,0.00021403,2]
[310900895,1704813360235,-672.68403925,0.00021403,2]
[310900896,1704813360486,-1128.74028579,0.00021403,2]
[310900897,1704813360516,-268.84522748,0.00021403,2]
[310900898,1704813360773,288.85748742,0.00021402,2]
[310900899,1704813360878,154.90705577,0.00019262,3]
[310900900,1704813361176,586.93974545,0.00021403,2]
[310900901,1704813361720,2571.71019809,0.00019262,2]
[310900902,1704813361748,282.74641726,0.00019262,2]
[310900903,1704813361878,946.99985386,0.00021402,2]
[310900904,1704813362006,322.75514155,0.00021402,2]
[310900905,1704813362137,218.15804138,0.00021403,2]
[310900906,1704813362261,642.78616711,0.00021402,2]
[310900907,1704813362364,212.54059711,0.00021402,2]
[310900908,1704813362406,262.00069883,0.00021402,2]
[310900909,1704813362525,168.0053694,0.00021402,2]
[310900910,1704813362570,155.56063004,0.00021402,2]
[310900911,1704813363156,399.93081293,0.00021402,2]
[310900912,1704813363847,213.79488055,0.00021402,2]
[310900913,1704813363881,213.79488055,0.00021402,2]
[310900914,1704813364345,-5000.0,0.00021402,2]
[310900915,1704813364555,-5000.0,0.00021402,2]
[310900916,1704813364656,-5000.0,0.00021402,2]
[310900917,1704813364738,-1069.16460077,0.00021402,2]
[310900918,1704813364770,-508.90304238,0.00021402,2]
[310900919,1704813364802,-154.90705577,0.00021402,2]
[310900920,1704813364836,-154.90705577,0.00021403,2]
[310900921,1704813364869,-855.05083382,0.00021403,2]
[310900922,1704813364922,164.88125202,0.00021403,2]
[310900923,1704813365205,245.66639212,0.00021403,2]
[310900924,1704813365455,253.49803646,0.00021403,2]
[310900925,1704813365525,242.53908956,0.00021403,2]
[310900926,1704813365626,1032.31588976,0.00021403,2]
[310900927,1704813365666,318.16675157,0.00021403,2]
[310900928,1704813365700,5000.0,0.00021403,2]
[310900929,1704813365734,5000.0,0.00021403,2]
[310900930,1704813365767,3371.04274584,0.00021403,2]
[310900931,1704813366429,178.40030532,0.00021403,2]
[310900932,1704813366493,198.77449424,0.00021403,2]
[310900933,1704813366765,178.47633031,0.00021403,2]
[310900934,1704813370378,-483.3948,0.00021394,3]
[310900935,1704813370574,-9.8652,0.00021394,3]
[310900937,1704813378256,-154.90705577,0.00019263,3]
[310900938,1704813378285,-362.52081475,0.00021403,2]
[310900939,1704813378313,-9.17025525,0.00021403,2]
[310900940,1704813378398,-299.49714042,0.00021403,2]
[310900941,1704813378426,-174.82421155,0.00021403,2]
[310900942,1704813379179,52.2767738,0.00021403,2]
[310900943,1704813379207,463.75270867,0.00021403,2]
[310900944,1704813379509,365.33946486,0.00021403,2]
[310900945,1704813379538,160.16647598,0.00021403,2]
[310900946,1704813379934,497.59797023,0.00021403,2]
[310900947,1704813379964,108.92478453,0.00021403,2]
[310900948,1704813380453,309.60033879,0.00021403,2]
[310900950,1704813380938,87.1837695,0.00021403,2]
[310900951,1704813380966,173.35279828,0.00021403,2]
[310900954,1704813381425,332.35609454,0.00021394,3]
[310900956,1704813382330,-78.69390546,0.00021394,3]
[310900957,1704813382359,-783.06099445,0.00021403,2]
[310900958,1704813382388,-4138.24510009,0.00021403,2]
[310900960,1704813382446,-5000.0,0.00021403,2]
[310900961,1704813382512,-1590.10668194,0.00021403,2]
[310900962,1704813382540,-154.90705577,0.00021403,2]
[310900963,1704813382831,164.88125202,0.00021403,2]
[310900964,1704813383543,326.67816258,0.00021403,2]
[310900966,1704813383950,253.49803646,0.00021403,2]
[310900967,1704813384258,642.78616711,0.00021403,2]
[310900968,1704813384415,192.3343768,0.00021403,2]
[310900969,1704813384584,198.53950366,0.00021403,2]
[310900970,1704813385137,399.93081293,0.00021403,2]
[310900971,1704813386360,-507.97021882,0.00021403,2]
[310900972,1704813386389,-304.34363595,0.00021403,2]
[310900973,1704813386497,-16.57783377,0.00021403,2]
[310900974,1704813386765,178.47633031,0.00021403,2]
[310900975,1704813388101,617.25969069,0.00021403,2]
[310900976,1704813388132,329.74016317,0.00021403,2]
[310900977,1704813388189,244.60322936,0.00021403,2]
[310900978,1704813393343,-154.90705577,0.00019263,3]
[310900979,1704813393374,-332.59105888,0.00021394,3]
[310900980,1704813393649,-9.94894112,0.00021394,3]
[310900981,1704813396408,-594.39229967,0.00021403,2]
[310900982,1704813396565,-12.13045509,0.00021403,2]
[310900984,1704813401839,-174.82421155,0.00021403,2]
[310900985,1704813401868,-479.38607396,0.00021403,2]
[310900986,1704813402108,-13.35123032,0.00021403,2]
[310900987,1704813402138,-252.96334629,0.00021403,2]
[310900988,1704813402181,156.97781444,0.00021403,2]
[310900989,1704813402287,-5000.0,0.00021403,2]
[310900990,1704813402427,-210.03643091,0.00021403,2]
[310900991,1704813402832,164.88125202,0.00021403,2]
[310900992,1704813402942,260.53656778,0.00021403,2]
[310900993,1704813403143,399.93081293,0.00021403,2]
[310900994,1704813403890,946.99985386,0.00021403,2]
[310900995,1704813404001,1523.52499903,0.00021403,2]
[310900996,1704813404143,342.35012709,0.00021403,2]
[310900997,1704813404252,195.57087802,0.00021403,2]
[310900998,1704813404616,4115.85,0.00021394,3]
[310900999,1704813408111,-179.60665467,0.00021403,2]
[310901000,1704813408141,-1007.43694141,0.00021403,2]
[310901001,1704813408548,-24.22537951,0.00021403,2]
[310901002,1704813408745,1162.81821657,0.00021403,2]
[310901003,1704813409163,-75.81051755,0.00021403,2]
[310901004,1704813409192,-150.2927043,0.00021403,2]
[310901005,1704813409471,-4.61435147,0.00021403,2]
[310901006,1704813409512,221.48887038,0.00021403,2]
[310901007,1704813410040,-2534.56065351,0.00021403,2]
[310901009,1704813410307,-51.72572762,0.00021403,2]
[310901010,1704813410338,-155.04777018,0.00021403,2]
[310901011,1704813410617,640.96942708,0.00021403,2]
[310901012,1704813411191,155.04650737,0.00021403,2]
[310901013,1704813411368,200.0,0.00023543,7]
[310901014,1704813411934,1531.77122126,0.00020761,5]
[310901015,1704813411964,1164.75759671,0.00020761,5]
[310901016,1704813412166,202.0,0.00025898,7]
[310901017,1704813412484,198.66992878,0.00021403,2]
[310901018,1704813412762,2335.89072473,0.00021189,2]
[310901019,1704813412794,2534.56065351,0.00021189,2]
[310901020,1704813413162,-5000.0,0.00021189,2]
[310901021,1704813413473,-952.67342041,0.00021189,2]
[310901022,1704813414209,-5000.0,0.00021403,2]
[310901023,1704813414256,-5000.0,0.00021403,2]
[310901024,1704813414326,-3681.29969267,0.00021403,2]
[310901025,1704813414360,-155.01016352,0.00021403,2]
[310901026,1704813414390,-155.07619644,0.00021403,2]
[310901027,1704813414420,-1008.61394737,0.00021403,2]
[310901028,1704813414463,-5000.0,0.00021403,2]
[310901029,1704813414584,-5000.0,0.00021403,2]
[310901030,1704813414676,-5000.0,0.00021403,2]
[310901031,1704813414778,-4806.60855271,0.00021403,2]
[310901032,1704813414806,-154.90705577,0.00021403,2]
[310901033,1704813414839,-38.48439152,0.00021403,2]
[310901034,1704813414888,-2099.91652736,0.00021403,2]
[310901035,1704813414916,-568.03836324,0.00021403,2]
[310901036,1704813414943,-154.97262977,0.00021403,2]
[310901037,1704813414972,-2177.07247963,0.00021403,2]
[310901038,1704813415349,-1005.25691973,0.00021403,2]
[310901039,1704813415378,-3994.74308027,0.00021403,2]
[310901040,1704813415525,-985.15178134,0.00021403,2]
[310901041,1704813415756,-985.15178134,0.00021403,2]
[310901042,1704813415834,-5000.0,0.00021403,2]
[310901043,1704813416078,-5000.0,0.00021403,2]
[310901044,1704813416127,261.57087789,0.00021403,2]
[310901045,1704813416164,-5000.0,0.00021403,2]
[310901046,1704813416234,155.2837213,0.00021403,2]
[310901047,1704813416269,-5000.0,0.00021403,2]
[310901048,1704813416316,-4146.34845367,0.00021403,2]
[310901049,1704813416393,213.02133567,0.00021403,2]
[310901050,1704813416475,640.63021066,0.00021394,3]
[310901051,1704813416503,2789.23978934,0.00021394,3]
[310901052,1704813417947,254.19777437,0.00021402,2]
[310901053,1704813418326,2872.41512846,0.00021402,2]
[310901054,1704813418487,271.89552092,0.00021403,2]
[310901055,1704813418891,154.90705577,0.00019262,3]
[310901056,1704813418925,1700.78229485,0.00021402,2]
[310901057,1704813418955,467.61047188,0.00021402,2]
[310901058,1704813418989,2509.67018179,0.00021402,2]
[310901059,1704813419024,309.65937468,0.00021402,2]
[310901060,1704813419323,154.90705577,0.00021402,2]
[310901061,1704813420628,-336.89233205,0.00021403,2]
[310901062,1704813420757,-6.87535372,0.00021403,2]
[310901063,1704813420830,163.62437938,0.00021403,2]
[310901064,1704813420940,166.39259895,0.00021403,2]
[310901065,1704813420968,217.96112993,0.00021403,2]
[310901066,1704813421161,118.93120212,0.00021403,2]
[310901067,1704813421189,35.97585365,0.00021403,2]
[310901068,1704813422178,154.90705577,0.00021403,2]
[310901069,1704813422212,146.00942263,0.00021403,2]
[310901070,1704813423439,-8.97374008,0.00021403,2]
[310901071,1704813423595,-178.94006108,0.00021403,2]
[310901072,1704813423626,-168.41475396,0.00021403,2]
[310901073,1704813423683,-7.27201133,0.00021403,2]
[310901074,1704813423734,238.07799625,0.00021403,2]
[310901075,1704813424021,110.97854754,0.00021403,2]
[310901076,1704813424051,211.60055464,0.00021403,2]
[310901077,1704813425644,144.72800048,0.00021403,2]
[310901078,1704813425673,168.18739265,0.00021403,2]
[310901079,1704813425879,179.34689719,0.00021403,2]
[310901080,1704813425907,347.53428984,0.00021403,2]
[310901081,1704813426222,-357.45726553,0.00021403,2]
[310901082,1704813426252,-509.19441798,0.00021403,2]
[310901083,1704813426337,-866.65168351,0.00021403,2]
[310901084,1704813426455,-147.67889754,0.00021403,2]
[310901085,1704813427091,154.98795941,0.00021403,2]
[310901087,1704813428645,1843.36261927,0.00021394,3]
[310901088,1704813428675,994.04396943,0.00021394,3]
[310901089,1704813428704,20.8234113,0.00021394,3]
[310901090,1704813428891,521.74935301,0.00021403,2]
[310901091,1704813429149,399.93081293,0.00021403,2]
[310901092,1704813432365,-594.39229967,0.00021403,2]
[310901093,1704813432538,-12.13045509,0.00021403,2]
[310901094,1704813432566,-155.04367951,0.00021403,2]
[310901095,1704813432830,427.21816507,0.00021403,2]
[310901096,1704813432865,293.67706495,0.00021403,2]
[310901097,1704813434887,154.90705577,0.00019263,3]
[310901098,1704813435838,-206.3213809,0.00021403,2]
[310901099,1704813435867,-147.68248704,0.00021403,2]
[310901100,1704813435975,-7.22456873,0.00021403,2]
[310901101,1704813436618,264.80820677,0.00021403,2]
[310901102,1704813438169,81.97109244,0.00021403,2]
[310901103,1704813438198,173.9118165,0.00021403,2]
[310901105,1704813438840,-266.19379602,0.00021402,2]
[310901106,1704813439142,-5.43252645,0.00021402,2]
[310901107,1704813439222,260.76126957,0.00021394,3]
[310901108,1704813439574,-2121.09873043,0.00021394,3]
[310901109,1704813440756,-155.20091892,0.00021403,2]
[310901110,1704813440786,-612.7723231,0.00021403,2]
[310901111,1704813441196,-15.67292331,0.00021403,2]
[310901112,1704813443181,155.14170622,0.00021402,2]
[310901113,1704813444502,-527.70988902,0.00021403,2]
[310901114,1704813444651,-10.76958957,0.00021403,2]
[310901115,1704813444762,190.96827556,0.00021402,2]
[310901116,1704813445938,325.97202389,0.00021403,2]
[310901117,1704813445969,257.7385025,0.00021403,2]
[310901118,1704813447125,155.30125294,0.00021403,2]
[310901119,1704813447165,114.67013358,0.00021403,2]
[310901120,1704813447491,-282.41288378,0.00021403,2]
[310901121,1704813448885,106.72847323,0.00021403,2]
[310901122,1704813448914,276.7646261,0.00021403,2]
[310901123,1704813448944,75.07204485,0.00021403,2]
[310901124,1704813450664,449.3938413,0.00021394,3]
[310901125,1704813450693,449.3938413,0.00021394,3]
[310901126,1704813452997,-342.60862098,0.00021403,2]
[310901127,1704813453116,-6.99201267,0.00021403,2]
[310901128,1704813453168,335.61660831,0.00021403,2]
[310901129,1704813453224,-342.60862098,0.00021403,2]
[310901130,1704813453326,-342.60862098,0.00021403,2]
[310901131,1704813453435,-174.00361478,0.00021403,2]
[310901132,1704813453872,164.20922315,0.00021403,2]
[310901133,1704813454890,4.39578305,0.00021403,4]
[310901134,1704813454921,150.51127272,0.00021403,4]
[310901135,1704813461459,-1798.3784,0.00021394,3]
[310901136,1704813461616,-36.7016,0.00021394,3]
[310901137,1704813465256,-190.78049304,0.00021403,2]
[310901138,1704813465286,-241.20756755,0.00021403,2]
[310901139,1704813465351,-8.81608287,0.00021403,2]
[310901140,1704813465717,322.3396954,0.00021402,2]
[310901141,1704813473488,-1037.28962088,0.00021394,3]
[310901142,1704813473529,-491.95037912,0.00021394,3]
[310901143,1704813473849,-164.6448863,0.00021403,2]
[310901144,1704813473879,-872.64473458,0.00021403,2]
[310901145,1704813474012,-21.16917594,0.00021403,2]
[310901146,1704813481038,-154.90705577,0.00019263,3]
[310901147,1704813481066,-90.55860749,0.00021403,2]
[310901148,1704813481155,-159.9165591,0.00021403,2]
[310901151,1704813481734,85.54910416,0.00021403,2]
[310901152,1704813481764,236.11476867,0.00021403,2]
[310901153,1704813485831,-1248.8728,0.00021394,3]
[310901154,1704813486013,-25.4872,0.00021394,3]
[310901155,1704813497191,-1040.7306,0.00021394,3]
[310901156,1704813497492,-21.2394,0.00021394,3]
[310901158,1704813509699,-867.2804,0.00021394,3]
[310901159,1704813509935,-17.6996,0.00021394,3]
[310901163,1704813520407,-722.7304,0.00021394,3]
[310901164,1704813520459,-14.7496,0.00021394,3]
[310901171,1704813529263,-510.88030976,0.00021402,2]
[310901172,1704813529393,-10.42612877,0.00021402,2]
[310901173,1704813530318,500.45418099,0.00021394,3]
[310901174,1704813530350,114.11581901,0.00021394,3]
[310901175,1704813532617,396.76449075,0.0002082,2]
[310901176,1704813533053,-1107.44257762,0.0002082,2]
[310901177,1704813533364,-22.60086893,0.0002082,2]
[310901178,1704813543027,-501.8972,0.00021394,3]
[310901179,1704813543138,-10.2428,0.00021394,3]
[310901180,1704813553705,-418.2444,0.00021394,3]
[310901181,1704813553814,-8.5356,0.00021394,3]
[310901182,1704813565540,-348.537,0.00021394,3]
[310901183,1704813565722,-7.113,0.00021394,3]
[310901184,1704813577539,-290.4524,0.00021394,3]
[310901185,1704813577653,-5.9276,0.00021394,3]
[310901187,1704813589290,-242.0404,0.00021394,3]
[310901188,1704813589389,-4.9396,0.00021394,3]
[310901189,1704813593993,-370.9710178,0.0002082,2]
[310901190,1704813594160,-7.5708371,0.0002082,2]
[310901191,1704813599804,-201.7036,0.00021394,3]
[310901192,1704813600009,-4.1164,0.00021394,3]
[310901201,1704813620991,-171.51,0.00021394,3]
[310901202,1704813621022,-837.008,0.00021394,3]
[310901203,1704813621112,-20.582,0.00021394,3]
[310901204,1704813633473,-187.67060334,0.00021305,2]
[310901205,1704813633504,-148.05550259,0.00021401,4]
[310901206,1704813633782,-6.85155318,0.00021401,4]
[310901207,1704813633811,-154.90705577,0.00021402,2]
[310901211,1704813666136,150.90945433,0.00029414,120]
[310901212,1704813722185,-2484.59703634,0.00021402,2]
[310901213,1704813722216,-102.11697393,0.00021403,4]
[310901214,1704813722494,-52.79008184,0.00021403,4]
[310901215,1704813722524,-154.90705577,0.00021403,2]
[310901216,1704813723946,2379.01687266,0.00020737,2]
[310901217,1704813724452,-5000.0,0.00020737,2]
[310901218,1704813724558,-5000.0,0.00020737,2]
[310901219,1704813724769,-5000.0,0.00020737,2]
[310901220,1704813724867,-5000.0,0.00020737,2]
[310901221,1704813725025,-5000.0,0.00020737,2]
[310901222,1704813725270,-5000.0,0.00020737,2]
[310901223,1704813725315,-5000.0,0.00020737,2]
[310901224,1704813725379,-5000.0,0.00020737,2]
[310901225,1704813725586,-5000.0,0.00020737,2]
[310901226,1704813725690,-5000.0,0.00020737,2]
[310901227,1704813725938,-5000.0,0.00020737,2]
[310901228,1704813726006,-5000.0,0.00020737,2]
[310901229,1704813726213,-5000.0,0.00020737,2]
[310901230,1704813726586,-259.07884194,0.00020737,2]
[310901231,1704813742391,-154.90705577,0.00019263,3]
[310901232,1704813742423,-180.02644004,0.00021403,2]
[310901233,1704813742457,-4665.06650419,0.00021403,2]
[310901234,1704813742609,-721.39999102,0.00021403,2]
[310901235,1704813766979,-154.90705577,0.00019263,3]
[310901236,1704813767013,-4845.09294423,0.00021403,2]
[310901237,1704813767266,-541.37355098,0.00021403,2]
[310901238,1704813769666,4458.62644902,0.00020662,2]
[310901239,1704813769697,541.37355098,0.00020662,2]
[310901242,1704813778587,-1281.2572675,0.00020818,2]
[310901243,1704813778704,-26.1481075,0.00020818,2]
[310901245,1704813785281,-5000.0,0.00021403,2]
[310901246,1704813785402,-386.46649521,0.00021403,2]
[310901247,1704813785447,154.90705577,0.00019263,3]
[310901249,1704813797677,-594.70059854,0.00021404,2]
[310901250,1704813797823,-594.70059854,0.00021404,2]
[310901252,1704813798066,-594.70059854,0.00021404,2]
[310901253,1704813798122,-5000.0,0.00021404,2]
[310901254,1704813798198,-5000.0,0.00021404,2]
[310901255,1704813798355,-5000.0,0.00021404,2]
[310901256,1704813798515,-5000.0,0.00021404,2]
[310901257,1704813798614,-5000.0,0.00021404,2]
[310901258,1704813798756,-5000.0,0.00021404,2]
[310901259,1704813798866,-5000.0,0.00021404,2]
[310901260,1704813799036,-5000.0,0.00021404,2]
[310901261,1704813799159,-5000.0,0.00021404,2]
[310901262,1704813799319,-5000.0,0.00021404,2]